bitfinex-derivatives/quotes_ETHF0:USTF0_20251013
["timestamp","ask_amount","ask_price","bid_price","bid_amount"]
[1760363067494,6.4974,4142.3,4141.6,0.287]
[1760363067691,1.2816,4142.4,4141.6,0.287]
[1760363067692,3.2078,4141.7,4141.6,0.287]
[1760363068005,3.2896,4141.0,4140.3,0.287]
[1760363068300,3.2896,4140.4,4139.4,3.2078]
[1760363068501,3.724,4140.4,4139.4,3.2078]
[1760363068805,3.2896,4140.2,4140.0,0.43443]
[1760363069002,3.2896,4140.2,4140.1,0.287]
[1760363069299,3.2896,4139.9,4138.4,3.2078]
[1760363069493,1.2816,4140.0,4138.4,3.2078]
[1760363069494,3.2896,4139.4,4138.5,0.287]
[1760363069898,3.16821839,4139.3,4138.5,0.7216]
[1760363070206,3.16821839,4139.3,4138.5,0.287]
[1760363070207,3.2896,4138.6,4138.5,0.287]
[1760363070496,3.2896,4138.6,4138.4,0.00267764]
[1760363070497,3.2896,4138.5,4138.4,0.00267764]
[1760363070903,0.43465,4138.0,4137.4,0.287]
[1760363071093,6.33917334,4138.5,4137.4,3.4948]
[1760363071293,3.2896,4137.5,4137.4,3.4948]
[1760363071498,3.2896,4137.8,4137.5,0.43469]
[1760363071796,0.00216864,4137.8,4137.5,0.00286988]
[1760363071997,0.00216864,4137.8,4137.6,0.43469]
[1760363072296,0.00216864,4137.8,4137.5,0.00286988]
[1760363072496,3.2896,4137.7,4137.6,0.43469]
[1760363072697,0.00216864,4137.8,4137.5,0.00286988]
[1760363072998,0.00216864,4137.8,4137.6,0.43469]
[1760363073408,4.5712,4137.6,4137.5,0.00286988]
[1760363073701,4.5712,4137.6,4135.4,1.27580961]
[1760363073702,3.2896,4136.3,4135.8,3.2078]
[1760363073899,1.2816,4136.4,4135.8,3.4948]
[1760363074106,3.72439,4136.7,4135.9,0.43487]
[1760363074301,3.2896,4136.2,4135.8,3.4948]
[1760363074504,3.61463542,4136.4,4135.8,3.49753369]
[1760363074808,3.2896,4135.9,4135.8,2.6982508]
[1760363075108,3.2896,4135.8,4135.2,0.24182335]
[1760363075305,3.2896,4135.8,4135.3,0.287]
[1760363075603,1.2816,4136.0,4135.2,0.24182335]
[1760363075604,6.4974,4135.4,4135.2,0.24182335]
[1760363075801,3.5766,4135.3,4133.8,0.43509]
[1760363076109,3.5766,4135.3,4133.9,0.287]
[1760363076110,3.2896,4134.3,4133.9,0.287]
[1760363076313,3.2078,4135.0,4133.9,0.287]
[1760363076509,3.2078,4135.0,4134.1,0.43505]
[1760363076812,3.2078,4135.0,4134.0,0.43506]
[1760363076813,3.2896,4134.2,4134.0,0.43506]
[1760363077008,3.2896,4134.2,4134.1,0.00204594]
[1760363077203,3.2078,4134.5,4134.3,0.43503]
[1760363077610,6.49924201,4135.0,4134.7,0.43499]
[1760363077811,3.2896,4134.9,4134.7,0.287]
[1760363078007,6.45100172,4134.9,4134.1,0.00204594]
[1760363078206,3.2896,4134.9,4134.7,0.43499]
[1760363078404,3.20964201,4135.0,4134.9,0.43498]
[1760363078613,3.20964201,4135.0,4134.8,0.287]
[1760363078907,0.00184201,4135.0,4134.9,0.43498]
[1760363079103,6.4974,4136.3,4136.2,0.43484]
[1760363079303,3.2078,4136.9,4136.2,0.287]
[1760363079515,3.2896,4136.3,4136.2,0.287]
[1760363079699,3.2078,4136.9,4136.4,0.43481]
[1760363080011,3.14776479,4136.4,4136.2,0.287]
[1760363080209,3.2896,4136.3,4136.2,0.287]
[1760363080506,9.64516479,4136.3,4136.2,0.287]
[1760363080701,9.64516479,4136.3,4134.1,3.28604594]
[1760363080702,3.2896,4135.1,4134.8,0.287]
[1760363080902,6.4974,4135.5,4134.9,0.72197]
[1760363081100,3.2078,4135.5,4135.2,0.43494]
[1760363081300,3.17572232,4135.9,4135.6,0.4349]
[1760363081500,3.2078,4135.9,4135.3,3.4948]
[1760363081902,3.2896,4135.6,4135.3,3.4948]
[1760363082202,3.2896,4135.7,4135.3,3.4948]
[1760363082399,3.20968155,4136.4,4136.2,0.43483]
[1760363082609,0.00188155,4136.4,4136.3,0.287]
[1760363082908,3.2896,4137.7,4136.4,1.08705]
[1760363083208,3.2078,4137.9,4136.8,3.284]
[1760363083401,3.2078,4137.9,4136.9,0.287]
[1760363083610,3.2896,4137.5,4136.9,0.287]
[1760363083918,6.8550761,4137.4,4136.9,0.287]
[1760363084107,3.2896,4137.3,4136.9,0.287]
[1760363084312,3.2896,4137.3,4137.0,0.287]
[1760363084605,3.2896,4137.1,4137.0,0.2892258]
[1760363085014,3.11036489,4137.1,4137.0,0.2892258]
[1760363085314,3.2896,4134.4,4133.8,2.06692091]
[1760363085509,3.2896,4134.4,4133.3,3.02881867]
[1760363085510,3.2078,4133.9,4133.3,0.287]
[1760363085718,3.54541489,4134.3,4133.3,3.4948]
[1760363085903,3.2078,4134.4,4133.3,0.287]
[1760363086104,3.20997752,4134.4,4133.3,0.28896511]
[1760363086312,3.09916761,4134.2,4133.4,0.287]
[1760363086625,3.20997752,4134.4,4133.8,0.43509]
[1760363086910,3.20997752,4134.4,4134.0,0.43506]
[1760363087113,3.20997752,4134.4,4134.1,0.287]
[1760363087410,3.20997752,4134.4,4134.2,3.467]
[1760363087914,0.43504,4134.3,4134.1,0.287]
[1760363088111,3.20997752,4134.4,4134.1,0.287]
[1760363088312,3.20997752,4134.4,4134.1,3.754]
[1760363088613,3.20997752,4134.4,4134.1,0.287]
[1760363089008,3.3075,4134.3,4134.1,0.287]
[1760363089209,3.20997752,4134.4,4134.1,0.287]
[1760363089613,3.20997752,4134.4,4134.3,3.467]
[1760363089806,0.00217752,4134.4,4134.3,3.467]
[1760363090215,0.00217752,4134.4,4134.1,0.287]
[1760363090610,3.74255,4134.3,4134.1,0.287]
[1760363090811,0.43513,4133.4,4133.3,0.00196511]
[1760363091009,3.2078,4133.9,4133.7,0.4351]
[1760363091321,3.2078,4133.9,4133.6,0.43511]
[1760363091613,3.2078,4133.9,4133.4,3.467]
[1760363091915,3.1338441,4133.8,4133.7,0.4351]
[1760363092116,3.1338441,4133.8,4133.3,0.28796511]
[1760363092117,3.20997752,4134.4,4134.1,0.43505]
[1760363092413,3.20997752,4134.4,4134.2,0.286]
[1760363092611,3.20997752,4134.4,4134.3,3.467]
[1760363092612,0.00217752,4134.4,4134.3,3.467]
[1760363092804,3.2078,4135.4,4135.0,0.43496]
[1760363093005,3.2078,4135.4,4135.1,0.286]
[1760363093214,3.2078,4135.4,4135.2,0.43494]
[1760363093722,3.2078,4135.4,4134.1,3.2078]
[1760363093723,0.43497,4135.0,4133.8,1.2756]
[1760363093912,3.2078,4134.5,4133.9,0.286]
[1760363094214,3.2078,4135.1,4135.0,3.90196]
[1760363094515,3.2078,4135.1,4135.0,4.18796]
[1760363094911,3.2078,4135.1,4135.0,0.286]
[1760363095306,9.63870571,4135.1,4135.0,0.286]
[1760363096005,9.63870571,4135.1,4135.0,0.28194093]
[1760363096405,3.2078,4135.1,4135.0,4.18391093]
[1760363096815,3.2078,4135.1,4135.0,0.28194093]
[1760363097206,3.2078,4135.1,4135.0,3.74894093]
[1760363097905,0.00310927,4135.4,4135.3,0.43493]
[1760363098119,0.43477,4136.9,4135.3,3.2078]
[1760363098310,3.2078,4136.7,4135.5,3.2078]
[1760363098509,0.43482,4136.5,4135.6,0.286]
[1760363099019,1.0869,4137.0,4135.6,0.286]
[1760363099020,3.3075,4137.0,4136.5,0.4348]
[1760363099215,3.2078,4136.7,4136.6,0.286]
[1760363099724,6.5153,4136.7,4136.6,0.286]
[1760363100024,3.2078,4136.7,4136.6,0.286]
[1760363100317,3.3075,4135.8,4133.7,3.2078]
[1760363100515,3.2078,4135.7,4134.4,3.467]
[1760363100722,3.2078,4135.7,4134.9,3.467]
[1760363101020,6.5153,4136.6,4136.0,0.43486]
[1760363101318,0.00234112,4137.0,4136.1,0.286]
[1760363101516,0.00234112,4137.0,4136.9,3.467]
[1760363101718,0.00234112,4137.0,4136.9,3.753]
[1760363102114,0.00234112,4137.0,4136.8,0.43477]
[1760363102315,0.43476,4137.0,4136.9,0.286]
[1760363102517,3.3075,4136.3,4136.0,0.00174415]
[1760363102715,0.43482,4136.4,4135.3,3.2078]
[1760363102716,0.43491,4135.6,4135.3,3.2078]
[1760363102921,1.08726,4135.6,4133.3,3.467]
[1760363103213,1.08726,4135.6,4132.8,0.02419667]
[1760363103214,0.43516,4133.2,4132.8,0.02419667]
[1760363103420,3.3075,4133.3,4132.9,0.286]
[1760363103621,3.3075,4132.9,4132.2,3.2078]
[1760363103809,3.3075,4132.2,4130.8,3.2078]
[1760363104011,3.19182991,4133.3,4131.5,3.2078]
[1760363104012,6.95052,4132.7,4131.5,3.2078]
[1760363104211,3.20993016,4133.3,4132.5,3.2078]
[1760363104417,3.10838452,4133.2,4132.6,0.286]
[1760363104628,0.00213016,4133.3,4133.2,0.43515]
[1760363104923,3.2078,4135.4,4133.3,3.467]
[1760363105115,3.3075,4133.7,4132.7,3.2078]
[1760363105311,3.2078,4133.9,4132.8,0.286]
[1760363105617,3.3075,4135.2,4134.0,3.467]
[1760363105919,3.2078,4135.0,4134.6,0.435]
[1760363106224,3.19236704,4135.1,4134.0,3.46936101]
[1760363106225,9.96e-06,4135.2,4135.1,3.467]
[1760363106435,3.2078,4137.1,4135.3,3.467]
[1760363106628,3.3075,4137.0,4136.0,0.43486]
[1760363106919,3.3075,4137.0,4136.3,6.6748]
[1760363106920,3.1211063,4136.4,4136.3,6.6748]
[1760363107124,3.3075,4137.8,4136.3,6.9608]
[1760363107311,0.00197315,4137.8,4136.3,6.9608]
[1760363107517,0.00197315,4137.8,4137.7,0.43468]
[1760363107808,3.2078,4138.7,4138.6,0.43459]
[1760363108010,6.5153,4138.7,4138.6,0.286]
[1760363108217,3.0959791,4138.4,4137.8,0.43467]
[1760363108421,6.3037791,4138.7,4137.9,0.286]
[1760363108720,3.20988122,4138.7,4137.9,0.286]
[1760363108927,3.18394571,4138.6,4138.0,0.43465]
[1760363109131,3.2078,4138.1,4137.9,0.286]
[1760363109316,0.00208122,4138.7,4138.5,0.43459]
[1760363109518,0.00208122,4138.7,4138.6,3.753]
[1760363109825,3.3075,4138.6,4138.3,3.2078]
[1760363110017,0.00208122,4138.7,4137.7,0.00256105]
[1760363110018,0.00208122,4138.7,4138.5,0.4346]
[1760363110210,0.00208122,4138.7,4138.6,0.286]
[1760363110518,0.00208122,4138.7,4138.4,0.43461]
[1760363110519,3.08207545,4138.5,4138.4,0.43461]
[1760363110712,0.00208122,4138.7,4138.6,3.90159]
[1760363111017,3.3075,4140.2,4139.2,3.467]
[1760363111018,3.2078,4140.2,4139.2,3.467]
[1760363111323,3.2078,4140.2,4139.1,0.43453]
[1760363111324,3.2078,4139.6,4139.3,0.286]
[1760363111619,3.3075,4140.4,4139.4,0.286]
[1760363111821,3.3101249,4140.4,4139.5,0.286]
[1760363112022,3.3101249,4140.4,4139.0,0.43454]
[1760363112023,3.2078,4139.6,4139.0,0.43454]
[1760363112211,3.3101249,4140.4,4139.1,0.286]
[1760363112417,3.3101249,4140.4,4140.0,0.43444]
[1760363112418,0.0026249,4140.4,4140.0,0.43444]
[1760363112716,0.0026249,4140.4,4140.3,3.467]
[1760363112918,3.2078,4141.2,4140.3,0.43441]
[1760363113127,1.3227,4142.6,4140.1,0.286]
[1760363113128,3.2078,4140.6,4140.1,0.286]
[1760363113324,3.3075,4140.5,4138.6,3.90158]
[1760363113525,3.2078,4139.2,4138.7,0.286]
[1760363113721,1.75711,4140.4,4138.8,3.467]
[1760363113722,3.2078,4139.7,4138.8,3.467]
[1760363113935,0.0020758,4139.7,4139.1,3.2078]
[1760363114114,0.0020758,4139.7,4139.2,0.286]
[1760363114315,0.0020758,4139.7,4139.4,0.4345]
[1760363114519,3.3075,4139.6,4139.2,0.264]
[1760363114725,3.2078,4139.3,4138.4,3.2078]
[1760363114921,3.2078,4139.3,4138.5,0.286]
[1760363115121,3.3075,4139.4,4136.8,10.86943]
[1760363115122,6.5153,4138.7,4138.6,0.286]
[1760363115619,6.5153,4138.7,4137.3,3.2078]
[1760363115620,12.39458,4135.7,4134.8,1.03520384]
[1760363115819,0.43515,4133.3,4131.4,3.2078]
[1760363116123,0.43515,4133.3,4129.2,0.24217473]
[1760363116124,0.43532,4131.7,4129.2,0.24217473]
[1760363116327,10.87968,4133.0,4129.2,0.24217473]
[1760363116328,0.286,4131.6,4129.2,0.24217473]
[1760363116622,0.286,4131.6,4130.1,1.3571]
[1760363116623,0.43547,4130.3,4130.1,1.3571]
[1760363116818,0.285,4130.4,4129.3,2.98366796]
[1760363117131,0.43553,4129.6,4129.4,2.49703796]
[1760363117426,0.43553,4129.6,4129.4,1.72722796]
[1760363117619,3.08409136,4129.5,4129.4,1.72722796]
[1760363117820,0.43545,4130.4,4129.4,4.85562796]
[1760363118021,0.43537,4131.2,4129.9,3.1284]
[1760363118224,3.11972896,4129.9,4129.4,2.01222796]
[1760363118521,0.43541,4130.8,4129.5,1.72722796]
[1760363118822,3.40472896,4131.1,4129.4,1.72722796]
[1760363118823,3.2078,4129.6,4129.4,1.72722796]
[1760363119231,0.60846848,4129.5,4129.4,1.23428796]
[1760363119431,0.43573,4127.8,4126.9,0.24084]
[1760363119726,4.0593984,4129.5,4124.4,12.7761]
[1760363119727,3.16592992,4127.7,4126.7,3.1284]
[1760363119933,3.16592992,4127.7,4127.2,1.3571]
[1760363120221,0.286,4130.0,4127.2,1.3571]
[1760363120222,3.2078,4128.4,4127.6,0.24084]
[1760363120423,3.2078,4127.9,4127.7,0.285]
[1760363120615,3.21015993,4128.4,4128.2,0.24084]
[1760363120815,3.21015993,4128.4,4127.6,0.0029596]
[1760363121021,3.21015993,4128.4,4125.8,1.3571]
[1760363121022,0.43578,4127.3,4126.8,0.286]
[1760363121227,10.89216,4128.2,4126.5,0.286]
[1760363121228,0.43583,4126.8,4126.5,0.286]
[1760363121529,3.2078,4126.9,4125.6,0.24084]
[1760363121725,3.2078,4125.7,4125.1,0.24084]
[1760363122027,3.2078,4125.2,4125.1,0.00251934]
[1760363122227,3.2078,4125.2,4125.1,3.41691934]
[1760363122228,3.2106953,4125.2,4125.1,3.41691934]
[1760363122424,24.4,4127.6,4125.2,3.1284]
[1760363122425,3.12124643,4126.5,4125.2,3.1284]
[1760363122628,3.2078,4126.7,4125.1,0.00251934]
[1760363122629,3.2078,4125.3,4125.1,0.00251934]
[1760363123330,3.1724746,4125.2,4125.1,0.00251934]
[1760363123526,3.1773821,4125.2,4125.1,0.00251934]
[1760363123730,0.0020075,4125.2,4125.1,3.41691934]
[1760363123933,3.2078,4127.1,4126.4,0.43586]
[1760363124127,3.2078,4128.5,4127.0,0.2388325]
[1760363124439,3.13503081,4128.2,4127.5,3.2078]
[1760363124626,3.13503081,4128.4,4127.5,3.2078]
[1760363124827,3.13503081,4128.1,4127.9,0.4357]
[1760363125129,3.64269,4128.1,4127.1,3.2078]
[1760363125326,0.00183409,4128.4,4127.1,3.2078]
[1760363125327,3.2078,4127.7,4127.1,0.286]
[1760363125728,3.207,4126.8,4125.6,3.2078]
[1760363125924,3.2078,4126.6,4125.4,3.2078]
[1760363126234,3.207,4127.3,4125.2,0.286]
[1760363126235,3.2078,4125.7,4125.2,0.286]
[1760363126530,3.64291,4126.1,4124.9,0.286]
[1760363126732,3.2078,4125.2,4125.0,0.286]
[1760363126922,3.2078,4125.2,4124.1,0.286]
[1760363127129,0.4361,4124.2,4124.1,0.286]
[1760363127329,3.20885776,4124.2,4123.2,3.45032713]
[1760363127525,3.20885776,4124.2,4123.2,0.24252713]
[1760363127526,3.2078,4123.7,4123.2,0.24252713]
[1760363127728,3.2078,4123.9,4123.2,0.24252713]
[1760363128027,3.22045065,4124.2,4123.2,0.24252713]
[1760363128028,3.207,4123.3,4123.2,0.34172913]
[1760363128235,0.4362,4123.4,4123.2,0.10289663]
[1760363128533,3.207,4124.1,4122.4,0.286]
[1760363128534,0.43626,4122.7,4122.4,0.286]
[1760363128728,3.14343941,4123.3,4121.5,0.286]
[1760363128729,0.43636,4121.8,4121.5,0.286]
[1760363128925,0.286,4122.3,4121.1,3.2078]
[1760363129121,3.2078,4122.5,4119.6,11.434]
[1760363129122,3.2078,4121.2,4120.6,3.2078]
[1760363129327,3.2078,4121.7,4120.6,3.2078]
[1760363129531,3.20981765,4121.7,4120.6,3.21068769]
[1760363129727,3.08189097,4121.2,4120.6,3.21068769]
[1760363129927,3.08189097,4121.6,4120.6,3.21068769]
[1760363129928,3.2078,4120.7,4120.6,0.00288769]
[1760363130133,3.2078,4121.3,4120.6,0.00288769]
[1760363130330,3.10589879,4120.7,4120.6,0.00288769]
[1760363130524,2.1037,4120.7,4120.6,0.00288769]
[1760363131029,3.10589879,4120.7,4120.6,0.28888769]
[1760363131223,0.00201765,4121.7,4120.6,0.28888769]
[1760363131426,3.2078,4122.8,4121.7,3.1284]
[1760363131623,3.2078,4122.8,4122.1,3.2078]
[1760363131925,3.2078,4122.8,4121.6,1.3571]
[1760363131926,3.2078,4122.8,4122.7,3.3672325]
[1760363132132,3.2078,4123.4,4122.7,0.2388325]
[1760363132326,3.2078,4123.4,4120.5,1.09123]
[1760363132327,2.55637,4122.6,4120.8,3.2078]
[1760363132525,2.55637,4122.6,4121.3,3.2078]
[1760363132526,0.00265321,4122.6,4121.3,3.2078]
[1760363132723,0.00265321,4122.6,4122.5,0.2388325]
[1760363133032,4.98827256,4122.5,4121.3,3.2078]
[1760363133235,1.8341,4122.5,4122.1,0.2388325]
[1760363133432,3.21950959,4122.4,4122.2,0.286]
[1760363133635,0.00265321,4122.6,4122.5,3.6617325]
[1760363133834,3.2078,4123.9,4123.0,0.43623]
[1760363134131,3.2078,4125.2,4123.8,0.2388325]
[1760363134331,0.43593,4125.8,4124.7,3.2078]
[1760363134537,3.19217972,4125.4,4125.2,3.2078]
[1760363134732,1.8341,4125.5,4125.3,0.286]
[1760363134934,1.8341,4125.4,4125.3,0.00258788]
[1760363135235,1.08968,4126.5,4125.3,0.00258788]
[1760363135236,3.21835304,4125.7,4125.3,3.21038788]
[1760363135436,5.48843304,4125.4,4125.3,0.00258788]
[1760363135639,3.65432304,4125.6,4125.3,0.28858788]
[1760363135935,0.43592,4126.0,4125.4,3.2078]
[1760363136236,0.00254467,4126.0,4125.9,7.06662]
[1760363136439,3.2078,4127.1,4125.9,3.4437354]
[1760363136637,2.26989,4127.3,4126.7,0.2359354]
[1760363136935,3.21569016,4127.1,4127.0,3.4229]
[1760363137134,1.8341,4128.1,4126.8,0.286]
[1760363137330,1.8341,4128.1,4126.9,3.2078]
[1760363137331,3.11765431,4127.6,4126.9,3.2078]
[1760363137632,3.11765431,4127.6,4126.8,0.286]
[1760363137633,3.11765431,4128.0,4127.9,3.4229]
[1760363137930,3.11765431,4128.0,4127.9,0.286]
[1760363137931,2.2698,4128.0,4127.9,0.286]
[1760363138124,2.2698,4128.0,4126.7,3.2078]
[1760363138125,3.15383067,4128.0,4126.7,3.2078]
[1760363138330,0.43578,4127.3,4127.0,0.2359354]
[1760363138533,6.36163067,4128.0,4126.7,3.2078]
[1760363138837,0.43572,4127.9,4127.7,0.2359354]
[1760363139039,3.60221299,4127.9,4127.8,0.286]
[1760363139236,0.43587,4126.5,4126.1,3.2078]
[1760363139434,3.2078,4127.0,4126.5,0.2359354]
[1760363139637,3.16649299,4126.4,4125.9,0.286]
[1760363139935,0.04217612,4127.9,4125.9,0.286]
[1760363139936,3.2078,4126.1,4125.9,0.286]
[1760363140133,3.2078,4126.4,4125.9,0.286]
[1760363140438,3.10531779,4126.0,4125.4,0.286]
[1760363140634,3.2078,4126.4,4125.4,0.286]
[1760363140635,3.2078,4126.4,4125.5,0.43596]
[1760363140933,3.10531779,4126.3,4125.5,3.4229]
[1760363141137,3.2078,4127.0,4126.7,0.43584]
[1760363141340,3.20879547,4127.8,4127.4,0.43576]
[1760363141535,3.20879547,4127.9,4127.4,0.43576]
[1760363141536,0.00181657,4128.1,4127.8,0.2359354]
[1760363141742,3.2078,4130.0,4128.2,1.08918]
[1760363142039,0.43549,4130.1,4129.0,0.43559]
[1760363142234,3.19348479,4130.4,4129.4,0.43555]
[1760363142437,3.19348479,4131.3,4128.4,1.08915]
[1760363142438,3.2078,4130.0,4129.7,0.2359354]
[1760363142742,0.00234648,4130.0,4129.7,0.00178803]
[1760363142942,3.19348479,4129.9,4129.7,0.00178803]
[1760363143530,3.21014648,4130.0,4129.7,0.00178803]
[1760363143531,0.00234648,4130.0,4129.9,3.4229]
[1760363143735,0.00234648,4130.0,4129.7,3.20958803]
[1760363143939,3.53697427,4129.9,4129.7,0.00178803]
[1760363144138,3.2078,4129.8,4129.7,0.28778803]
[1760363144338,3.53697427,4129.9,4129.7,0.28778803]
[1760363144339,3.10146427,4129.9,4129.7,0.28778803]
[1760363144534,6.73346005,4129.8,4129.7,0.28778803]
[1760363144743,3.64331,4129.8,4129.7,0.28778803]
[1760363145047,3.64331,4129.8,4129.1,0.286]
[1760363145048,0.43558,4129.2,4129.1,0.286]
[1760363145241,6.33405748,4129.8,4129.1,0.286]
[1760363145442,0.6550324,4129.7,4129.1,0.286]
[1760363145739,3.78129455,4129.6,4129.2,0.286]
[1760363145939,0.65503707,4129.5,4129.2,0.286]
[1760363146238,1.09059707,4129.4,4129.2,0.28878319]
[1760363146444,0.65503707,4129.3,4129.2,0.28878319]
[1760363146636,0.65503707,4129.3,4129.2,0.00278319]
[1760363146637,1.50696432,4129.3,4129.2,0.00278319]
[1760363146837,3.74690276,4129.3,4129.2,0.00278319]
[1760363147344,0.65503707,4129.3,4129.2,0.52471859]
[1760363147540,7.84056932,4129.3,4129.2,0.28878319]
[1760363147841,8.70323536,4129.3,4129.2,0.00278319]
[1760363148044,8.70323536,4129.3,4129.2,3.19e-06]
[1760363148045,7.42198514,4129.3,4129.2,3.19e-06]
[1760363148745,7.70698514,4129.3,4129.2,3.19e-06]
[1760363148944,10.89106,4128.7,4126.6,3.2078]
[1760363149137,28.76490514,4129.3,4127.2,3.2078]
[1760363149138,0.43571,4128.0,4127.2,3.2078]
[1760363149441,3.57044458,4128.6,4128.5,0.2359354]
[1760363149743,3.57044458,4128.6,4128.2,0.285]
[1760363149744,0.43566,4128.4,4128.2,0.285]
[1760363149946,1.93282835,4128.3,4128.2,0.28787192]
[1760363150249,4.63939235,4128.3,4128.2,0.28787192]
[1760363150546,0.37533541,4129.0,4128.9,0.43561]
[1760363150740,3.2078,4129.7,4128.9,0.43561]
[1760363150741,3.2078,4129.7,4129.6,0.43553]
[1760363150939,3.2078,4129.7,4129.6,0.5209354]
[1760363151139,3.2078,4129.7,4129.6,0.285]
[1760363151453,0.43556,4129.4,4128.8,0.285]
[1760363151641,3.2078,4129.0,4128.8,0.285]
[1760363151843,3.2078,4129.0,4128.8,0.06811442]
[1760363152235,3.2078,4129.0,4128.9,0.2359354]
[1760363152441,3.2078,4129.7,4128.9,0.2359354]
[1760363152650,3.64333,4129.7,4129.3,0.2359354]
[1760363152950,3.17712039,4129.6,4128.8,0.06811442]
[1760363153251,0.00234648,4130.0,4129.6,3.5791354]
[1760363153443,0.00234648,4130.0,4129.9,0.2359354]
[1760363153647,0.00234648,4130.0,4129.9,3.5791354]
[1760363153848,0.00234648,4130.0,4129.9,0.2359354]
[1760363154044,0.00234648,4130.0,4129.9,3.4437354]
[1760363154245,3.2078,4131.8,4130.5,3.3432]
[1760363154445,3.2078,4131.8,4131.2,0.43536]
[1760363154754,3.12976287,4132.1,4131.7,0.2359354]
[1760363154938,3.2078,4132.3,4131.3,0.285]
[1760363155243,3.2078,4131.8,4131.3,0.28724698]
[1760363155439,3.2078,4131.8,4131.3,0.00224698]
[1760363155440,0.43534,4131.4,4131.3,0.00224698]
[1760363155645,0.43545,4130.5,4130.3,0.285]
[1760363155842,3.20798699,4131.7,4130.3,0.285]
[1760363155843,3.2078,4130.4,4130.3,0.285]
[1760363156038,6.28656144,4130.4,4130.3,0.285]
[1760363156238,3.2078,4130.4,4130.3,0.285]
[1760363156447,1.08866,4130.3,4128.1,6.551]
[1760363156651,3.07876144,4130.4,4130.2,0.43547]
[1760363156843,3.2078,4131.0,4130.3,0.5209354]
[1760363157044,3.2078,4131.2,4131.0,0.43538]
[1760363157244,3.2078,4131.2,4131.1,0.285]
[1760363157445,0.43537,4131.1,4131.0,0.00234002]
[1760363157745,3.2078,4131.8,4131.1,3.5791354]
[1760363157946,3.2078,4131.8,4131.7,3.5791354]
[1760363158144,3.2078,4131.8,4131.7,0.2359354]
[1760363158445,3.2078,4132.5,4132.1,0.43527]
[1760363158653,3.2078,4133.0,4132.2,0.2359354]
[1760363158843,3.2078,4132.4,4132.2,0.2359354]
[1760363159040,3.2078,4132.4,4131.0,0.00234002]
[1760363159041,3.11658893,4132.3,4131.0,0.00234002]
[1760363159246,3.11658893,4132.3,4131.0,0.43772002]
[1760363159247,3.2078,4131.2,4131.0,0.43772002]
[1760363159447,3.2078,4131.4,4131.0,0.00234002]
[1760363159646,3.2078,4131.9,4131.0,0.00234002]
[1760363160043,3.2078,4131.9,4131.8,0.2359354]
[1760363160245,3.2078,4131.9,4128.8,7.9307]
[1760363160246,1.08835,4131.5,4128.8,7.9307]
[1760363160451,3.2078,4129.1,4128.8,1.3797]
[1760363160648,3.2078,4129.1,4128.7,0.285]
[1760363160649,0.43562,4128.9,4128.7,0.285]
[1760363160844,0.43562,4128.9,4127.5,1.81545]
[1760363160845,0.43573,4127.8,4127.5,1.3797]
[1760363161047,3.2078,4128.0,4126.4,3.3432]
[1760363161249,3.2078,4127.0,4126.5,0.285]
[1760363161444,3.2078,4127.5,4126.5,3.4928]
[1760363161653,3.20966348,4128.0,4127.4,0.2359354]
[1760363161948,3.20966348,4128.0,4127.4,0.285]
[1760363161949,3.2078,4127.5,4127.4,0.285]
[1760363162352,6.83254391,4127.5,4127.4,0.285]
[1760363162552,3.20966348,4128.0,4127.9,3.77891]
[1760363162751,0.00186348,4128.0,4127.9,3.5791354]
[1760363163055,0.00186348,4128.0,4127.9,0.6716454]
[1760363163358,0.00186348,4128.0,4127.0,3.3432]
[1760363163359,3.77924944,4128.0,4127.0,3.3432]
[1760363163649,0.00186348,4128.0,4127.9,0.43571]
[1760363163851,0.00186348,4128.0,4127.9,4.0148454]
[1760363164056,3.2078,4129.5,4127.9,0.31853198]
[1760363164242,3.2078,4129.5,4127.8,3.3432]
[1760363164243,3.2078,4129.3,4128.0,0.31853198]
[1760363164444,3.2078,4129.3,4129.1,0.43559]
[1760363164445,0.59415476,4129.2,4129.1,0.43559]
[1760363164645,3.2078,4130.5,4129.3,3.77876]
[1760363164846,2.40685154,4131.7,4129.4,0.31853198]
[1760363164847,3.2078,4130.0,4129.4,0.31853198]
[1760363165048,3.2078,4131.0,4129.9,3.3432]
[1760363165248,3.21981185,4131.2,4131.0,0.43538]
[1760363165453,3.21981185,4131.6,4130.8,3.2078]
[1760363165454,3.21981185,4131.6,4131.5,3.77853]
[1760363165646,3.2078,4132.2,4131.5,0.55465966]
[1760363165846,3.2078,4131.8,4131.7,0.6712454]
[1760363166167,3.21070546,4131.8,4131.7,0.55465966]
[1760363166458,3.21070546,4131.8,4131.7,0.31872426]
[1760363166459,6.67370546,4131.8,4131.7,0.31872426]
[1760363166655,9.7754358,4131.8,4131.7,0.31872426]
[1760363167054,0.43539,4131.0,4129.8,0.4355]
[1760363167354,3.2078,4130.0,4129.8,0.285]
[1760363167552,6.38140982,4130.9,4129.8,0.285]
[1760363167753,3.17360982,4131.5,4131.3,0.43535]
[1760363167948,0.00290546,4131.8,4131.4,0.285]
[1760363168148,0.00290546,4131.8,4131.7,0.2359354]
[1760363168456,0.22,4133.3,4131.8,3.3432]
[1760363168648,3.2078,4132.5,4131.9,0.43528]
[1760363168954,3.2078,4132.1,4130.8,3.3432]
[1760363169258,3.2078,4132.1,4129.4,0.00294143]
[1760363169259,6.6708,4131.0,4129.4,0.00294143]
[1760363169447,0.00225894,4131.0,4129.6,3.3432]
[1760363169651,3.2078,4130.7,4130.4,0.43544]
[1760363169852,3.463,4130.6,4130.5,0.285]
[1760363170056,6.59687341,4130.6,4130.5,0.285]
[1760363170252,0.43549,4130.0,4129.4,0.00294143]
[1760363170455,3.13387341,4130.6,4129.4,0.00294143]